fUST/lending_fUST_20260411
["ID","MTS","AMOUNT","RATE_DAILY","PERIOD"]
[420282928,1775909438718,-152.0,8.586e-05,2]
[420282929,1775909438728,-152.0,8.586e-05,2]
[420282930,1775909438738,-152.0,8.586e-05,2]
[420282931,1775909438747,-152.0,8.586e-05,2]
[420282932,1775909438757,-152.0,8.586e-05,2]
[420282933,1775909438766,-152.0,8.586e-05,2]
[420282934,1775909438775,-152.0,8.586e-05,2]
[420282935,1775909438784,-152.0,8.589e-05,2]
[420282936,1775909438794,-152.0,8.589e-05,2]
[420282937,1775909438803,-152.0,8.589e-05,2]
[420282938,1775909438812,-152.0,8.589e-05,2]
[420282939,1775909438822,-152.0,8.589e-05,2]
[420282940,1775909438832,-152.0,8.589e-05,2]
[420282941,1775909438841,-500.0,8.593e-05,2]
[420282942,1775909438851,-500.0,8.593e-05,2]
[420282943,1775909438860,-500.0,8.593e-05,2]
[420282944,1775909438870,-337.85736406,8.617e-05,2]
[420282945,1775909438879,-500.0,8.617e-05,2]
[420282946,1775909438889,-500.0,8.617e-05,2]
[420282947,1775909438899,-500.0,8.617e-05,2]
[420282948,1775909438908,-500.0,8.617e-05,2]
[420282949,1775909438918,-250.0,8.617e-05,2]
[420282950,1775909438927,-500.0,8.617e-05,2]
[420282951,1775909438937,-500.0,8.617e-05,2]
[420282952,1775909438946,-500.0,8.617e-05,2]
[420282953,1775909438956,-399.28403805,8.617e-05,2]
[420282954,1775909438965,-486.98438221,8.617e-05,2]
[420282955,1775909438975,-500.0,8.617e-05,2]
[420282956,1775909438984,-500.0,8.617e-05,2]
[420282957,1775909438994,-335.93782214,8.617e-05,2]
[420282958,1775909439003,-500.0,8.617e-05,2]
[420282959,1775909439013,-500.0,8.617e-05,2]
[420282960,1775909439022,-500.0,8.617e-05,2]
[420282961,1775909439032,-500.0,8.617e-05,2]
[420282962,1775909439041,-500.0,8.617e-05,2]
[420282963,1775909439050,-500.0,8.617e-05,2]
[420282964,1775909439059,-500.0,8.617e-05,2]
[420282965,1775909439069,-500.0,8.617e-05,2]
[420282966,1775909439079,-500.0,8.617e-05,2]
[420282967,1775909439090,-523.44039928,8.617e-05,2]
[420282968,1775909439100,-500.0,8.617e-05,2]
[420282969,1775909439110,-500.0,8.617e-05,2]
[420282970,1775909439120,-500.0,8.617e-05,2]
[420282971,1775909439130,-500.0,8.617e-05,2]
[420282972,1775909439140,-500.0,8.617e-05,2]
[420282973,1775909439149,-243.88286725,8.617e-05,2]
[420282974,1775909439158,-2519.81914155,8.618e-05,2]
[420282975,1775909439168,-99279.27421893,8.618e-05,2]
[420282976,1775909439177,-596.23761001,8.693e-05,2]
[420282977,1775909439187,-500.0,8.693e-05,2]
[420282978,1775909439197,-500.0,8.693e-05,2]
[420282979,1775909439206,-500.0,8.693e-05,2]
[420282980,1775909439216,-410.27021249,8.693e-05,2]
[420282981,1775909439226,-500.0,8.693e-05,2]
[420282982,1775909439237,-500.0,8.693e-05,2]
[420282983,1775909439246,-190.196,8.693e-05,2]
[420282984,1775909439257,-504.18770079,8.693e-05,2]
[420282985,1775909439267,-500.0,8.694e-05,2]
[420282986,1775909439279,-2150.738,8.694e-05,2]
[420282987,1775909439289,-537.6845,8.694e-05,2]
[420282988,1775909439301,-445.202766,8.713e-05,2]
[420282989,1775909439310,-162.380719,8.713e-05,2]
[420282990,1775909439328,-1729.46801119,8.713e-05,2]
[420282991,1775909439338,-162.380719,8.713e-05,2]
[420282992,1775909439347,-151.0,8.713e-05,2]
[420282993,1775909439360,-151.0,8.713e-05,2]
[420282994,1775909439375,-151.0,8.713e-05,2]
[420282995,1775909439385,-151.0,8.713e-05,2]
[420282996,1775909439395,-151.0,8.713e-05,2]
[420282997,1775909439415,-151.0,8.713e-05,2]
[420282998,1775909439427,-151.0,8.713e-05,2]
[420282999,1775909439439,-537.6845,8.713e-05,2]
[420283000,1775909439456,-151.0,8.713e-05,2]
[420283001,1775909439468,-151.0,8.713e-05,2]
[420283002,1775909439480,-151.0,8.713e-05,2]
[420283003,1775909439492,-151.0,8.713e-05,2]
[420283004,1775909439502,-151.0,8.713e-05,2]
[420283005,1775909439526,-151.0,8.713e-05,2]
[420283006,1775909439540,-151.0,8.713e-05,2]
[420283007,1775909439550,-156.587,8.713e-05,2]
[420283008,1775909439591,-151.0,8.713e-05,2]
[420283009,1775909439631,-151.0,8.713e-05,2]
[420283010,1775909439685,-151.0,8.713e-05,2]
[420283011,1775909439730,-151.0,8.713e-05,2]
[420283012,1775909439751,-151.0,8.713e-05,2]
[420283013,1775909439777,-557.5788265,8.749e-05,2]
[420283014,1775909439792,-500.0,8.793e-05,2]
[420283015,1775909439805,-500.0,8.793e-05,2]
[420283016,1775909439835,-500.0,8.793e-05,2]
[420283017,1775909439844,-948.0,8.801e-05,2]
[420283018,1775909439884,-578.20924308,8.804e-05,2]
[420283019,1775909439897,-500.54196291,8.816e-05,2]
[420283020,1775909439910,-670.12131619,8.818e-05,2]
[420283021,1775909439932,-292.02448369,8.819e-05,2]
[420283022,1775909439945,-599.60298507,8.859e-05,2]
[420283023,1775909439958,-600.0,8.865e-05,2]
[420283024,1775909439983,-747.69132465,8.906e-05,2]
[420283026,1775909439995,-621.78829552,8.914e-05,2]
[420283028,1775909440009,-644.79446246,8.969e-05,2]
[420283030,1775909440039,-504.18770076,9.01e-05,2]
[420283031,1775909440050,-668.65185757,9.024e-05,2]
[420283032,1775909440095,-693.3919763,9.079e-05,2]
[420283033,1775909440163,-1461.72455581,9.094e-05,2]
[420283034,1775909440233,-719.04747942,9.134e-05,2]
[420283036,1775909440278,-1000.0,9.141e-05,2]
[420283038,1775909440300,-1000.0,9.141e-05,2]
[420283039,1775909440314,-2351.0,9.146e-05,2]
[420283040,1775909440328,-745.65223616,9.189e-05,2]
[420283041,1775909440346,-1278.26820188,9.219e-05,2]
[420283042,1775909440362,-587.0,9.235e-05,2]
[420283043,1775909440375,-1000.0,9.241e-05,2]
[420283044,1775909440389,-1044.94012147,9.241e-05,2]
[420283045,1775909440407,-1000.0,9.241e-05,2]
[420283046,1775909440419,-1000.0,9.241e-05,2]
[420283047,1775909440430,-1000.0,9.241e-05,2]
[420283048,1775909440447,-506.94657237,9.242e-05,2]
[420283049,1775909440457,-2230.315306,9.242e-05,2]
[420283050,1775909440470,-773.2413689,9.244e-05,2]
[420283051,1775909440481,-461.67526834,9.261e-05,2]
[420283052,1775909440494,-168.3888056,9.261e-05,2]
[420283053,1775909440503,-151.0,9.261e-05,2]
[420283054,1775909440514,-557.5788265,9.261e-05,2]
[420283055,1775909440524,-801.85129955,9.299e-05,2]
[420283056,1775909440540,-795.0,9.3e-05,2]
[420283057,1775909440549,-504.18770076,9.327e-05,2]
[420283058,1775909440560,-1086.65297465,9.341e-05,2]
[420283059,1775909440570,-1000.0,9.341e-05,2]
[420283060,1775909440585,-502.24424742,9.341e-05,2]
[420283061,1775909440595,-831.51979763,9.354e-05,2]
[420283062,1775909440606,-177.0,9.371e-05,2]
[420283063,1775909440616,-862.28603014,9.409e-05,2]
[420283064,1775909440625,-894.19061326,9.464e-05,2]
[420283065,1775909440635,-927.27566595,9.519e-05,2]
[420283066,1775909440646,-961.58486559,9.574e-05,2]
[420283067,1775909440656,-653.39,9.578e-05,2]
[420283068,1775909440667,-1440.25,9.578e-05,2]
[420283069,1775909440677,-442.449,9.578e-05,2]
[420283070,1775909440686,-738.0,9.578e-05,2]
[420283071,1775909440698,-997.16350561,9.629e-05,2]
[420283072,1775909440709,-162.380719,9.631e-05,2]
[420283073,1775909440719,-504.18770076,9.643e-05,2]
[420283074,1775909440729,-1500.0,9.688e-05,2]
[420283075,1775909440739,-631.20257707,9.688e-05,2]
[420283076,1775909440748,-151.06205137,9.706e-05,2]
[420283077,1775909440761,-720.0,9.752e-05,2]
[420283078,1775909440770,-505.0,9.753e-05,2]
[420283079,1775909440780,-1151.0,9.753e-05,2]
[420283080,1775909440790,-506.0,9.753e-05,2]
[420283081,1775909440801,-274.0,9.753e-05,2]
[420283082,1775909440811,-800.0,9.774e-05,2]
[420283083,1775909440821,-1500.0,9.788e-05,2]
[420283084,1775909440830,-1500.0,9.788e-05,2]
[420283085,1775909440840,-1500.0,9.788e-05,2]
[420283086,1775909440853,-1500.0,9.788e-05,2]
[420283087,1775909440864,-2312.83697232,9.79e-05,2]
[420283088,1775909440873,-224.40077656,9.791e-05,2]
[420283089,1775909440883,-800.0,9.802e-05,2]
[420283090,1775909440892,-800.0,9.803e-05,2]
[420283091,1775909440905,-625.04635944,9.809e-05,2]
[420283092,1775909440915,-174.61919141,9.809e-05,2]
[420283093,1775909440924,-151.0,9.809e-05,2]
[420283094,1775909440937,-578.20924308,9.809e-05,2]
[420283095,1775909440946,-256.227243,9.828e-05,2]
[420283096,1775909440956,-151.664,9.843e-05,2]
[420283097,1775909440966,-150.164,9.843e-05,2]
[420283098,1775909440980,-150.591,9.843e-05,2]
[420283099,1775909440990,-800.0,9.852e-05,2]
[420283100,1775909441000,-800.0,9.855e-05,2]
[420283101,1775909441010,-800.0,9.862e-05,2]
[420283102,1775909441024,-1500.0,9.888e-05,2]
[420283103,1775909441034,-800.0,9.897e-05,2]
[420283104,1775909441043,-620.77796786,9.922e-05,2]
[420283105,1775909441053,-800.0,9.922e-05,2]
[420283106,1775909441076,-500.0,9.933e-05,2]
[420283108,1775909441086,-500.0,9.933e-05,2]
[420283109,1775909441096,-500.0,9.933e-05,2]
[420283110,1775909441117,-500.0,9.933e-05,2]
[420283111,1775909441129,-500.0,9.933e-05,2]
[420283112,1775909441139,-500.0,9.933e-05,2]
[420283113,1775909441161,-190548.0541198,9.958e-05,2]
[420283114,1775909441607,-384.033501,9.958e-05,2]
[420283121,1775909446562,-42229.48286912,9.958e-05,2]
[420283122,1775909446660,-800.0,9.96e-05,2]
[420283123,1775909446768,-504.18770076,9.96e-05,2]
[420283124,1775909446813,-800.0,9.982e-05,2]
[420283125,1775909446832,-162.0,0.0001,14]
[420283126,1775909446853,-2016.13921458,0.0001,2]
[420283127,1775909446873,-1635.90464272,0.0001,2]
[420283128,1775909446884,-157.68700161,0.0001,2]
[420283129,1775909446902,-169.48882689,0.0001,2]
[420283130,1775909446914,-341.1081435,0.0001,2]
[420283131,1775909446923,-674.60568246,0.0001,2]
[420283132,1775909446934,-800.0,0.00010012,2]
[420283133,1775909446959,-540.76,0.00010016,2]
[420283134,1775909446970,-356.63,0.00010017,2]
[420283135,1775909446985,-299.8,0.00010017,2]
[420283136,1775909446995,-800.0,0.00010022,2]
[420283137,1775909447005,-560.22,0.00010028,2]
[420283138,1775909447017,-190.74,0.00010028,2]
[420283139,1775909447032,-306.73,0.00010029,2]
[420283140,1775909447042,-376.11,0.00010029,2]
[420283141,1775909447052,-599.74,0.00010029,2]
[420283142,1775909447064,-320.82,0.00010031,2]
[420283143,1775909447077,-402.64,0.00010032,2]
[420283144,1775909447087,-653.61,0.00010032,2]
[420283145,1775909447097,-340.02,0.00010033,2]
[420283146,1775909447108,-435.16,0.00010034,2]
[420283147,1775909447120,-719.58,0.00010034,2]
[420283148,1775909447130,-363.57,0.00010035,2]
[420283149,1775909447140,-347.05,0.00010044,2]
[420283150,1775909447152,-155.0,0.00010059,14]
[420283151,1775909447165,-1397.0,0.00010061,2]
[420283152,1775909447176,-168.3888056,0.00010082,2]
[420283153,1775909447186,-162.380719,0.00010082,2]
[420283154,1775909447203,-820.94226287,0.00010152,2]
[420283155,1775909447217,-823.0,0.00010158,2]
[420283156,1775909447229,-168.3888056,0.00010179,2]
[420283157,1775909447243,-207.95,0.000102,2]
[420283158,1775909447253,-559.41,0.000102,2]
[420283159,1775909447265,-2000.0,0.00010236,2]
[420283160,1775909447284,-1314.93901872,0.00010237,2]
[420283161,1775909447294,-2000.0,0.00010336,2]
[420283162,1775909447311,-2000.0,0.00010336,2]
[420283163,1775909447327,-1817.35483472,0.00010336,2]
[420283164,1775909447337,-2000.0,0.00010336,2]
[420283165,1775909447357,-2398.4119403,0.00010338,2]
[420283166,1775909447375,-181.08010149,0.00010357,2]
[420283167,1775909447385,-151.0,0.00010357,2]
[420283168,1775909447401,-599.60298507,0.00010357,2]
[420283169,1775909447417,-620.03889839,0.00010419,2]
[420283170,1775909447427,-1795.96351833,0.00010436,2]
[420283171,1775909447437,-1000.0,0.00010481,2]
[420283172,1775909447454,-1000.0,0.00010481,2]
[420283173,1775909447464,-1000.0,0.00010481,2]
[420283174,1775909447474,-1000.0,0.00010481,2]
[420283175,1775909447488,-503.06663606,0.00010481,2]
[420283176,1775909447502,-1000.0,0.00010481,2]
[420283177,1775909447513,-219.17316979,0.00010626,6]
[420283178,1775909447531,-864.0,0.00010727,2]
[420283179,1775909447545,-174.61919141,0.00010727,2]
[420283180,1775909447555,-505.0,0.00010753,2]
[420283181,1775909447571,-1151.0,0.00010753,2]
[420283182,1775909447592,-506.0,0.00010753,2]
[420283183,1775909447602,-274.0,0.00010753,2]
[420283184,1775909447636,-2500.0,0.00010784,2]
[420283185,1775909447659,-5031.57639401,0.00010861,2]
[420283186,1775909447681,-1433.1188792,0.00010861,2]
[420283187,1775909447731,-2049.15,0.00010861,2]
[420283197,1775910260431,-200.0,0.00018192,120]
[420283198,1775910260473,-169.48882688,0.00020364,120]
[420283199,1775910260508,-259.08421398,0.00020786,120]
[420283200,1775910260542,-226.20856938,0.00020786,120]
[420283201,1775910260570,-269.91621856,0.000208,120]
[420283202,1775910260595,-157.68700161,0.00020911,120]
[420283203,1775910260624,-254.61262267,0.00021004,120]
[420283204,1775910260651,-155.47949431,0.0002101,120]
[420283205,1775910260680,-186.4334985,0.00021389,120]
[420283206,1775910260711,-192.74819385,0.00021481,120]
[420283207,1775910260743,-587.8148224,0.00021534,120]
[420283208,1775910260768,-177.3760194,0.00021769,120]
[420283209,1775910260830,-587.8148224,0.00022422,120]
[420283210,1775910260863,-200.0,0.000241,120]
[420283211,1775910260893,-2181.33944996,0.00024369,120]
[420283212,1775910260919,-463.01017835,0.00025,120]
[420283213,1775910260947,-175.65428714,0.00025,120]
[420283214,1775910260981,-300.54356391,0.00026,120]
[420283215,1775910261011,-1314494.53593169,0.00027,120]
[420283216,1775910261040,-200.0,0.00029133,120]
[420283217,1775910261084,-2303.71037086,0.00029999,120]
[420283218,1775910261122,-3000.0,0.0003,120]
[420283219,1775910261150,-197.0499827,0.0003,120]
[420283220,1775910261376,-500.0,0.0003,120]
[420283221,1775910261409,-160.0,0.0003,120]
[420283222,1775910261462,-733.0,0.0003,120]
[420283223,1775910261497,-167.99262514,0.0003,120]
[420283224,1775910261533,-168.0,0.0003,120]
[420283225,1775910261569,-160.0,0.0003,120]
[420283226,1775910261616,-10000.0,0.0003,120]
[420283227,1775910266941,-500.0,0.00032369,120]
[420283228,1775910266979,-293.97437224,0.00032369,120]
[420283229,1775910267015,-1034.08883275,0.00032369,120]
[420283230,1775910267040,-981.57036895,0.00032369,120]
[420283231,1775910267077,-165.84500966,0.00032369,120]
[420283232,1775910267116,-740.97397235,0.00032369,120]
[420283233,1775910267146,-806.87159743,0.00032369,120]
[420283234,1775910267190,-1785.84170516,0.00032369,120]
[420283235,1775910267218,-1978.02945161,0.00032369,120]
[420283236,1775910267254,-1184.61192595,0.00032369,120]
[420283237,1775910267289,-1317.07737476,0.00032369,120]
[420283238,1775910267321,-1461.82622,0.00032369,120]
[420283239,1775910267363,-658.64432725,0.00032369,120]
[420283240,1775910267415,-150.39915826,0.00032369,120]
[420283241,1775910267448,-1080.1813525,0.00032369,120]
[420283242,1775910267476,-1542.52991443,0.00032369,120]
[420283243,1775910267507,-2090.04367469,0.00032369,120]
[420283244,1775910267534,-944.6209677,0.00032369,120]
[420283245,1775910267562,-476.70118631,0.00032369,120]
[420283246,1775910267593,-1616.89245478,0.00032369,120]
[420283247,1775910267629,-559.639941,0.00032369,120]
[420283248,1775910267664,-230.61425029,0.00032369,120]
[420283249,1775910267688,-338.36097954,0.00032369,120]
[420283250,1775910267725,-526.97935053,0.00032369,120]
[420283251,1775910267761,-2134.96325175,0.00032369,120]
[420283252,1775910267798,-1061.88895715,0.00032369,120]
[420283253,1775910267834,-1703.47004675,0.00032369,120]
[420283254,1775910267866,-213.60063095,0.00032369,120]
[420283255,1775910267904,-378.08819187,0.00032369,120]
[420283256,1775910267946,-367.79496274,0.00032369,120]
[420283257,1775910267980,-1883.39590824,0.00032369,120]
[420283258,1775910268007,-182.21783851,0.00032369,120]
[420283259,1775910268040,-565.59758636,0.00032369,120]
[420283260,1775910268075,-521.35381989,0.00032369,120]
[420283261,1775910268104,-580.89341423,0.00032369,120]
[420283262,1775910268135,-2090.52535927,0.00032369,120]
[420283263,1775910268174,-204.28628966,0.00032369,120]
[420283264,1775910268210,-167.07121873,0.00032369,120]
[420283265,1775910268233,-1080.53057465,0.00032369,120]
[420283266,1775910268266,-1035.43597197,0.00032369,120]
[420283267,1775910268295,-200.0,0.00032369,120]
[420283268,1775910268320,-162.96195855,0.00032369,120]
[420283269,1775910268348,-1127.13222173,0.00032369,120]
[420283270,1775910268379,-1000.64244819,0.00032369,120]
[420283271,1775910268413,-981.11832787,0.00032369,120]
[420283272,1775910268443,-154.44500456,0.00032369,120]
[420283273,1775910268489,-3000.0,0.00032369,120]
[420283274,1775910268537,-2060.0,0.00032369,120]
[420283275,1775910268571,-507.0142,0.00032369,120]
[420283276,1775910268607,-507.0142,0.00032369,120]
[420283277,1775910268642,-500.0,0.00032369,120]
[420283278,1775910268683,-500.0,0.00032369,120]
[420283279,1775910268719,-500.0,0.00032369,120]
[420283280,1775910268752,-221.91980304,0.00032369,120]
[420283281,1775910268787,-14857.75748868,0.00032369,120]
[420283282,1775910268813,-429598.2759396,0.00032369,120]
[420283283,1775910268849,-1821.09,0.00032369,120]
[420283284,1775910268883,-1821.09,0.00032369,120]
[420283285,1775910268911,-1821.09,0.00032369,120]
[420283286,1775910268947,-1821.09,0.00032369,120]
[420283287,1775910268998,-1821.09,0.00032369,120]
[420283288,1775910269030,-1821.09,0.00032369,120]
[420283289,1775910269217,-1821.09,0.00032369,120]
[420283290,1775910269264,-1821.09,0.00032369,120]
[420283291,1775910269319,-1821.09,0.00032369,120]
[420283292,1775910269353,-1821.09,0.00032369,120]
[420283293,1775910269396,-1821.09,0.00032369,120]
[420283294,1775910269436,-1821.09,0.00032369,120]
[420283295,1775910269469,-1821.09,0.00032369,120]
[420283296,1775910269509,-1821.09,0.00032369,120]
[420283297,1775910269578,-1821.09,0.00032369,120]
[420283298,1775910269611,-1821.09,0.00032369,120]
[420283299,1775910269648,-1821.09,0.00032369,120]
[420283300,1775910269690,-1821.09,0.00032369,120]
[420283301,1775910269729,-1821.09,0.00032369,120]
[420283302,1775910269772,-1821.09,0.00032369,120]
[420283303,1775910269806,-1821.09,0.00032369,120]
[420283304,1775910269836,-1821.09,0.00032369,120]
[420283305,1775910269868,-1821.09,0.00032369,120]
[420283306,1775910269921,-1821.11624153,0.00032369,120]
[420283307,1775910269978,-2051.72,0.00032369,120]
[420283308,1775910270014,-1478.92,0.00032369,120]
[420283309,1775910270039,-2000.0,0.00032369,120]
[420283310,1775910270067,-588.0,0.00032369,120]
[420283311,1775910270097,-2000.0,0.00032369,120]
[420283312,1775910270129,-252.47885787,0.00032369,120]
[420283313,1775910270166,-2000.0,0.00032369,120]
[420283314,1775910270211,-242.0,0.00032369,120]
[420283315,1775910270250,-1428.083114,0.00032369,120]
[420283316,1775910270309,-160.51947688,0.00032369,120]
[420283317,1775910270357,-160.52762032,0.00032369,120]
[420283318,1775910270390,-513.6143,0.00032369,120]
[420283319,1775910270446,-1091.4660445,0.00032369,120]
[420283320,1775910270486,-1010.75,0.00032369,120]
[420283321,1775910270521,-10636.77,0.00032369,120]
[420283322,1775910270546,-494.04,0.00032369,120]
[420283323,1775910270590,-797.66372567,0.00032369,120]
[420283324,1775910270621,-2067.76799515,0.00032369,120]
[420283325,1775910270647,-2945.92253495,0.00032369,120]
[420283326,1775910270683,-2000.0,0.00032369,120]
[420283327,1775910270726,-2058.18116037,0.00032369,120]
[420283328,1775910270762,-150.05934763,0.00032369,120]
[420283329,1775910270805,-1004.46799941,0.00032369,120]
[420283330,1775910270835,-1498.62602026,0.00032369,120]
[420283331,1775910270869,-169.59956546,0.00032369,120]
[420283332,1775910270918,-3050.0,0.00032369,120]
[420283333,1775910270962,-1000.0,0.00032369,120]
[420283334,1775910271019,-1142.99965411,0.00032369,120]
[420283335,1775910271069,-1011.14,0.00032369,120]
[420283336,1775910271107,-1448.56052388,0.00032369,120]
[420283337,1775910271151,-20557.0332162,0.00032369,120]
[420283338,1775910271185,-1359.44404792,0.00032369,120]
[420283339,1775910271218,-12945.77,0.00032369,120]
[420283340,1775910271262,-397.289747,0.00032369,120]
[420283341,1775910271301,-536.53555807,0.00032369,120]
[420283342,1775910271337,-329.08123373,0.00032369,120]
[420283343,1775910271369,-246.11453422,0.00032369,120]
[420283344,1775910271404,-1759.68,0.00032369,120]
[420283345,1775910271439,-166.45052202,0.00032369,120]
[420283346,1775910271471,-166.53052201,0.00032369,120]
[420283347,1775910271505,-40011.54430449,0.00032369,120]
[420283348,1775910271541,-514921.99999989,0.00032369,120]
[420283349,1775910271579,-2186.60414858,0.00032369,120]
[420283350,1775910271630,-800.0,0.00032369,120]
[420283351,1775910271673,-1523.77418511,0.00032369,120]
[420283352,1775910271707,-151.0,0.00032369,120]
[420283353,1775910271741,-2000.0,0.00032369,120]
[420283354,1775910271778,-2000.0,0.00032369,120]
[420283355,1775910271815,-587.13309104,0.00032369,120]
[420283356,1775910271847,-156.47295159,0.00032369,120]
[420283357,1775910271875,-206.52176249,0.00032369,120]
[420283358,1775910271927,-50000.0,0.00032369,120]
[420283359,1775910271970,-174.73746481,0.00032369,120]
[420283360,1775910272021,-191.80025786,0.00032369,120]
[420283361,1775910272054,-491.55448811,0.00032369,120]
[420283362,1775910272091,-491.55448811,0.00032369,120]
[420283363,1775910272121,-491.55448811,0.00032369,120]
[420283364,1775910272154,-491.55448811,0.00032369,120]
[420283365,1775910272186,-491.55448811,0.00032369,120]
[420283366,1775910272213,-491.55448811,0.00032369,120]
[420283367,1775910272247,-491.55448811,0.00032369,120]
[420283368,1775910272280,-491.55448811,0.00032369,120]
[420283369,1775910272309,-491.55448811,0.00032369,120]
[420283370,1775910272346,-491.55448811,0.00032369,120]
[420283371,1775910272391,-491.55448811,0.00032369,120]
[420283372,1775910272443,-491.55448811,0.00032369,120]
[420283373,1775910272471,-491.55448811,0.00032369,120]
[420283374,1775910272509,-491.55448811,0.00032369,120]
[420283375,1775910272539,-491.55448811,0.00032369,120]
[420283376,1775910272572,-491.55448811,0.00032369,120]
[420283377,1775910272605,-491.55448811,0.00032369,120]
[420283378,1775910272638,-491.55448811,0.00032369,120]
[420283379,1775910272674,-491.55448811,0.00032369,120]
[420283380,1775910272711,-491.55448811,0.00032369,120]
[420283381,1775910272738,-491.55448811,0.00032369,120]
[420283382,1775910272772,-491.55448811,0.00032369,120]
[420283383,1775910272809,-491.55448811,0.00032369,120]
[420283384,1775910273002,-491.55448811,0.00032369,120]
[420283385,1775910273035,-491.55448811,0.00032369,120]
[420283386,1775910273074,-491.55448811,0.00032369,120]
[420283387,1775910273117,-491.55448811,0.00032369,120]
[420283388,1775910273154,-491.55448811,0.00032369,120]
[420283389,1775910273203,-491.55448811,0.00032369,120]
[420283390,1775910273247,-491.55448811,0.00032369,120]
[420283391,1775910273298,-331.45096701,0.00032369,120]
[420283392,1775910273339,-255.4362847,0.00032369,120]
[420283393,1775910273376,-331.45096701,0.00032369,120]
[420283394,1775910273429,-331.45096701,0.00032369,120]
[420283395,1775910273465,-331.45096701,0.00032369,120]
[420283396,1775910273526,-331.45096701,0.00032369,120]
[420283397,1775910273600,-331.45096701,0.00032369,120]
[420283398,1775910273652,-331.45096701,0.00032369,120]
[420283399,1775910273696,-331.45096701,0.00032369,120]
[420283400,1775910273737,-331.45096701,0.00032369,120]
[420283401,1775910273782,-331.45096701,0.00032369,120]
[420283402,1775910273815,-331.45096701,0.00032369,120]
[420283403,1775910273843,-331.45096701,0.00032369,120]
[420283404,1775910273871,-331.45096701,0.00032369,120]
[420283405,1775910273901,-331.45096701,0.00032369,120]
[420283406,1775910273927,-165.7254835,0.00032369,120]
[420283407,1775910273953,-165.7254835,0.00032369,120]
[420283408,1775910273977,-1105.3721752,0.00032369,120]
[420283409,1775910274004,-154.72190936,0.00032369,120]
[420283410,1775910274034,-154.72190936,0.00032369,120]
[420283411,1775910274065,-154.72190936,0.00032369,120]
[420283412,1775910274093,-154.72190936,0.00032369,120]
[420283413,1775910274126,-154.72190936,0.00032369,120]
[420283414,1775910274162,-154.72190936,0.00032369,120]
[420283415,1775910274204,-154.72190936,0.00032369,120]
[420283416,1775910274244,-154.72190936,0.00032369,120]
[420283417,1775910274288,-439.91077633,0.00032369,120]
[420283418,1775910274321,-218.27910356,0.00032369,120]
[420283419,1775910274369,-256.46577607,0.00032369,120]
[420283420,1775910274414,-162.81008373,0.00032369,120]
[420283421,1775910274454,-439.91077633,0.00032369,120]
[420283422,1775910274488,-218.27910356,0.00032369,120]
[420283423,1775910274523,-256.46577607,0.00032369,120]
[420283424,1775910274559,-162.81008373,0.00032369,120]
[420283425,1775910274599,-256.46577607,0.00032369,120]
[420283426,1775910274634,-439.91077633,0.00032369,120]
[420283427,1775910274685,-162.81008373,0.00032369,120]
[420283428,1775910274729,-439.91077633,0.00032369,120]
[420283429,1775910274778,-162.81008373,0.00032369,120]
[420283430,1775910274844,-439.91077633,0.00032369,120]
[420283431,1775910274894,-162.81008373,0.00032369,120]
[420283432,1775910274965,-439.91077633,0.00032369,120]
[420283433,1775910275065,-162.81008373,0.00032369,120]
[420283434,1775910275110,-439.91077633,0.00032369,120]
[420283435,1775910275153,-162.81008373,0.00032369,120]
[420283436,1775910275183,-439.91077633,0.00032369,120]
[420283437,1775910275219,-439.91077633,0.00032369,120]
[420283438,1775910275245,-439.91077633,0.00032369,120]
[420283439,1775910275274,-439.91077633,0.00032369,120]
[420283440,1775910275306,-439.91077633,0.00032369,120]
[420283441,1775910275333,-439.91077633,0.00032369,120]
[420283442,1775910275370,-439.91077633,0.00032369,120]
[420283443,1775910275414,-439.91077633,0.00032369,120]
[420283444,1775910275447,-218.27910355,0.00032369,120]
[420283445,1775910275489,-10232.82,0.00032369,120]
[420283446,1775910275544,-268.26443725,0.00032369,120]
[420283447,1775910275594,-215.25290223,0.00032369,120]
[420283448,1775910275632,-268.26443725,0.00032369,120]